[Event "*** Titled Tuesday Blitz"]
[Site "Chess.com"]
[Date "2021.02.02"]
[Round "11"]
[White "LileKoridze"]
[Black "strelec64"]
[Result "0-1"]
[WhiteElo "2374"]
[BlackElo "2497"]
[TimeControl "180+1"]
[EndTime "12:06:59 PST"]
[Termination "strelec64 won by resignation"]

1. d4 {[%clk 0:03:00.9]} 1... Nf6 {[%clk 0:02:58.9]} 2. c4 {[%clk 0:03:00.7]}
2... g6 {[%clk 0:02:56.5]} 3. Nc3 {[%clk 0:02:59.6]} 3... Bg7 {[%clk 0:02:56.4]}
4. e4 {[%clk 0:02:59.6]} 4... d6 {[%clk 0:02:56.1]} 5. Nf3 {[%clk 0:03:00]} 5...
O-O {[%clk 0:02:54.9]} 6. Be2 {[%clk 0:03:00.2]} 6... c5 {[%clk 0:02:54.7]} 7.
O-O {[%clk 0:02:57.5]} 7... cxd4 {[%clk 0:02:52.1]} 8. Nxd4 {[%clk 0:02:57.8]}
8... Nc6 {[%clk 0:02:52.3]} 9. Be3 {[%clk 0:02:57.7]} 9... Bd7 {[%clk
0:02:51.2]} 10. Qd2 {[%clk 0:02:53.6]} 10... Nxd4 {[%clk 0:02:49.8]} 11. Bxd4
{[%clk 0:02:53.9]} 11... Bc6 {[%clk 0:02:49.8]} 12. f3 {[%clk 0:02:53.9]} 12...
a5 {[%clk 0:02:49.3]} 13. b3 {[%clk 0:02:53.4]} 13... Nd7 {[%clk 0:02:38]} 14.
Rad1 {[%clk 0:02:43.7]} 14... Bxd4+ {[%clk 0:02:35]} 15. Qxd4 {[%clk 0:02:44.6]}
15... Qb6 {[%clk 0:02:34.9]} 16. Nd5 {[%clk 0:02:39.8]} 16... Qxd4+ {[%clk
0:02:32.8]} 17. Rxd4 {[%clk 0:02:38.2]} 17... Bxd5 {[%clk 0:02:27.3]} 18. exd5
{[%clk 0:02:35.2]} 18... Nc5 {[%clk 0:02:17.9]} 19. Bd1 {[%clk 0:02:23.8]} 19...
f5 {[%clk 0:02:09.6]} 20. Re1 {[%clk 0:02:23.3]} 20... Kf7 {[%clk 0:02:08.6]}
21. Rd2 {[%clk 0:02:22.6]} 21... Ra6 {[%clk 0:02:02.9]} 22. Rde2 {[%clk
0:02:20.4]} 22... Re8 {[%clk 0:02:01.9]} 23. Bc2 {[%clk 0:02:20.5]} 23... Rb6
{[%clk 0:02:00.8]} 24. Re3 {[%clk 0:02:09]} 24... a4 {[%clk 0:01:53.4]} 25. bxa4
{[%clk 0:01:46.8]} 25... Rb2 {[%clk 0:01:39.5]} 26. Bb3 {[%clk 0:01:46.3]} 26...
Rd2 {[%clk 0:01:39]} 27. R1e2 {[%clk 0:01:36]} 27... Rxe2 {[%clk 0:01:36.8]} 28.
Rxe2 {[%clk 0:01:36.2]} 28... Ra8 {[%clk 0:01:36.4]} 29. Rb2 {[%clk 0:01:32.3]}
29... Nxa4 {[%clk 0:01:31.6]} 30. Bxa4 {[%clk 0:01:29.7]} 30... Rxa4 {[%clk
0:01:31.4]} 31. Rxb7 {[%clk 0:01:29.6]} 31... Rxc4 {[%clk 0:01:31.1]} 32. Rb5
{[%clk 0:01:26.2]} 32... Ra4 {[%clk 0:01:27.5]} 33. Rb2 {[%clk 0:01:24.9]} 33...
Kf6 {[%clk 0:01:22.2]} 34. Rd2 {[%clk 0:01:16.7]} 34... f4 {[%clk 0:01:17.4]}
35. Kf2 {[%clk 0:01:15.6]} 35... Ra7 {[%clk 0:01:14.9]} 36. g3 {[%clk
0:01:13.3]} 36... g5 {[%clk 0:01:11.3]} 37. h4 {[%clk 0:01:12.1]} 37... fxg3+
{[%clk 0:01:02.1]} 38. Kxg3 {[%clk 0:01:11.9]} 38... gxh4+ {[%clk 0:01:02.3]}
39. Kxh4 {[%clk 0:01:12.2]} 39... Kf5 {[%clk 0:00:59.4]} 40. Re2 {[%clk
0:01:01.9]} 40... Kf4 {[%clk 0:00:54]} 41. Re4+ {[%clk 0:00:54.3]} 41... Kxf3
{[%clk 0:00:53.9]} 42. Re6 {[%clk 0:00:54.5]} 42... Kf4 {[%clk 0:00:46.5]} 43.
Kh5 {[%clk 0:00:53.7]} 43... Rxa2 {[%clk 0:00:46.1]} 44. Kh6 {[%clk 0:00:50.6]}
44... Rh2+ {[%clk 0:00:43.2]} 45. Kg7 {[%clk 0:00:50.8]} 45... h5 {[%clk
0:00:42.5]} 46. Rxe7 {[%clk 0:00:50.7]} 46... Rd2 {[%clk 0:00:41.8]} 47. Rf7+
{[%clk 0:00:48.6]} 47... Ke5 {[%clk 0:00:37.7]} 48. Kg6 {[%clk 0:00:46.9]} 48...
Rxd5 {[%clk 0:00:36.3]} 49. Re7+ {[%clk 0:00:32.3]} 49... Kf4 {[%clk 0:00:31.9]}
50. Rf7+ {[%clk 0:00:29]} 50... Ke4 {[%clk 0:00:31.6]} 51. Re7+ {[%clk
0:00:28.8]} 51... Re5 {[%clk 0:00:31.5]} 0-1

[Event "*** Titled Tuesday Blitz"]
[Site "Chess.com"]
[Date "2021.02.02"]
[Round "11"]
[White "AsaHoffmann"]
[Black "JAAC2002"]
[Result "0-1"]
[WhiteElo "2366"]
[BlackElo "2503"]
[TimeControl "180+1"]
[EndTime "12:07:00 PST"]
[Termination "JAAC2002 won by resignation"]

1. d4 {[%clk 0:02:54.1]} 1... Nf6 {[%clk 0:02:59.2]} 2. Bg5 {[%clk 0:02:48.4]}
2... g6 {[%clk 0:02:58.4]} 3. Nc3 {[%clk 0:02:47.1]} 3... Bg7 {[%clk 0:02:57.4]}
4. e4 {[%clk 0:02:43.4]} 4... d6 {[%clk 0:02:57.4]} 5. f3 {[%clk 0:02:43]} 5...
c6 {[%clk 0:02:57]} 6. Qd2 {[%clk 0:02:42.9]} 6... Nbd7 {[%clk 0:02:55]} 7. a4
{[%clk 0:02:42]} 7... h5 {[%clk 0:02:52.8]} 8. Bd3 {[%clk 0:02:40.2]} 8... Qa5
{[%clk 0:02:52.5]} 9. Nge2 {[%clk 0:02:39.1]} 9... e5 {[%clk 0:02:49.9]} 10. Be3
{[%clk 0:02:33.2]} 10... exd4 {[%clk 0:02:47.8]} 11. Nxd4 {[%clk 0:02:32.7]}
11... O-O {[%clk 0:02:44.5]} 12. Nb3 {[%clk 0:02:25.3]} 12... Qb4 {[%clk
0:02:39]} 13. Bh6 {[%clk 0:02:16.8]} 13... Nc5 {[%clk 0:02:25.2]} 14. Bxg7
{[%clk 0:02:12.1]} 14... Kxg7 {[%clk 0:02:26]} 15. Nxc5 {[%clk 0:02:02.6]} 15...
Qxc5 {[%clk 0:02:23.5]} 16. Qf2 {[%clk 0:01:56.4]} 16... Qxf2+ {[%clk
0:02:22.3]} 17. Kxf2 {[%clk 0:01:56]} 17... Be6 {[%clk 0:02:22.7]} 18. Rhd1
{[%clk 0:01:55]} 18... d5 {[%clk 0:02:22.1]} 19. e5 {[%clk 0:01:53.2]} 19... Nd7
{[%clk 0:02:21.7]} 20. f4 {[%clk 0:01:53.2]} 20... Bg4 {[%clk 0:02:20.2]} 21.
Re1 {[%clk 0:01:52.1]} 21... Nc5 {[%clk 0:02:20.2]} 22. h3 {[%clk 0:01:51.4]}
22... Be6 {[%clk 0:02:16.6]} 23. Ke3 {[%clk 0:01:51]} 23... Rad8 {[%clk
0:02:09]} 24. Kd4 {[%clk 0:01:50.5]} 24... b6 {[%clk 0:02:03]} 25. b4 {[%clk
0:01:49.6]} 25... Nd7 {[%clk 0:02:01.3]} 26. Ne2 {[%clk 0:01:48.5]} 26... c5+
{[%clk 0:02:01.1]} 27. bxc5 {[%clk 0:01:47.4]} 27... bxc5+ {[%clk 0:02:02]} 28.
Ke3 {[%clk 0:01:44]} 28... c4 {[%clk 0:02:02.3]} 29. Nd4 {[%clk 0:01:26]} 29...
cxd3 {[%clk 0:02:02]} 30. cxd3 {[%clk 0:01:25.7]} 30... Rb8 {[%clk 0:01:54.8]}
31. Rg1 {[%clk 0:01:19.1]} 31... h4 {[%clk 0:01:53.1]} 32. g4 {[%clk 0:01:17.5]}
32... hxg3 {[%clk 0:01:53.2]} 33. Rxg3 {[%clk 0:01:16.9]} 33... Rb6 {[%clk
0:01:32.4]} 34. f5 {[%clk 0:01:11]} 34... Nxe5 {[%clk 0:01:32.1]} 35. fxe6
{[%clk 0:01:09.2]} 35... fxe6 {[%clk 0:01:33]} 36. Rag1 {[%clk 0:01:01.8]} 36...
Rf6 {[%clk 0:01:32.8]} 37. h4 {[%clk 0:01:01.2]} 37... Nc6 {[%clk 0:01:22.5]}
38. h5 {[%clk 0:00:55.6]} 38... Ne7 {[%clk 0:01:06.1]} 39. Nf3 {[%clk
0:00:47.2]} 39... Nf5+ {[%clk 0:01:05.4]} 40. Kd2 {[%clk 0:00:45.6]} 40... Nxg3
{[%clk 0:01:02.8]} 41. Rxg3 {[%clk 0:00:45.2]} 41... Rxf3 {[%clk 0:01:00.8]} 42.
Rxf3 {[%clk 0:00:43.3]} 42... gxh5 {[%clk 0:01:01.1]} 43. Kc3 {[%clk 0:00:40.2]}
43... Ra6 {[%clk 0:00:57.3]} 44. Kd4 {[%clk 0:00:39.2]} 44... Rxa4+ {[%clk
0:00:56.9]} 45. Ke5 {[%clk 0:00:39.2]} 45... Ra6 {[%clk 0:00:56.9]} 46. d4
{[%clk 0:00:34.7]} 46... Rb6 {[%clk 0:00:53.2]} 47. Rh3 {[%clk 0:00:31.2]} 47...
Kh6 {[%clk 0:00:51.8]} 48. Rf3 {[%clk 0:00:29.4]} 48... Kg5 {[%clk 0:00:51]} 49.
Rf8 {[%clk 0:00:28.5]} 49... Kg4 {[%clk 0:00:49.3]} 50. Rg8+ {[%clk 0:00:26.6]}
50... Kh3 {[%clk 0:00:49.1]} 51. Rh8 {[%clk 0:00:22.4]} 51... h4 {[%clk
0:00:49.3]} 52. Kf4 {[%clk 0:00:19.1]} 52... Rb4 {[%clk 0:00:49.2]} 53. Ke5
{[%clk 0:00:17.9]} 53... Kg3 {[%clk 0:00:47.2]} 54. Rg8+ {[%clk 0:00:17.1]}
54... Kh2 {[%clk 0:00:47.3]} 55. Kxe6 {[%clk 0:00:15.6]} 55... Rxd4 {[%clk
0:00:47.5]} 56. Ke5 {[%clk 0:00:14.1]} 56... Rd3 {[%clk 0:00:46.4]} 0-1

[Event "*** Titled Tuesday Blitz"]
[Site "Chess.com"]
[Date "2021.02.02"]
[Round "11"]
[White "Happy1712Drummer"]
[Black "Tekushka"]
[Result "1-0"]
[WhiteElo "2355"]
[BlackElo "2432"]
[TimeControl "180+1"]
[EndTime "12:07:00 PST"]
[Termination "Happy1712Drummer won on time"]

1. Nf3 {[%clk 0:02:58.5]} 1... d5 {[%clk 0:02:59.4]} 2. d4 {[%clk 0:02:58.8]}
2... Nf6 {[%clk 0:02:58.8]} 3. e3 {[%clk 0:02:57.4]} 3... e6 {[%clk 0:02:56.9]}
4. b3 {[%clk 0:02:56.8]} 4... c5 {[%clk 0:02:53.2]} 5. Bd3 {[%clk 0:02:55.4]}
5... Nc6 {[%clk 0:02:53]} 6. a3 {[%clk 0:02:54.9]} 6... Bd6 {[%clk 0:02:51.3]}
7. Bb2 {[%clk 0:02:54.4]} 7... b6 {[%clk 0:02:47.5]} 8. Ne5 {[%clk 0:02:43.6]}
8... Bb7 {[%clk 0:02:46.5]} 9. O-O {[%clk 0:02:42.3]} 9... O-O {[%clk 0:02:45]}
10. Nd2 {[%clk 0:02:40.3]} 10... Ne7 {[%clk 0:02:04.7]} 11. dxc5 {[%clk
0:02:13.2]} 11... bxc5 {[%clk 0:02:02.1]} 12. Ng4 {[%clk 0:02:12.9]} 12... Nxg4
{[%clk 0:01:52.7]} 13. Qxg4 {[%clk 0:02:13.8]} 13... e5 {[%clk 0:01:34.3]} 14.
e4 {[%clk 0:01:56.7]} 14... d4 {[%clk 0:01:28.1]} 15. Nc4 {[%clk 0:01:32.8]}
15... Bc7 {[%clk 0:01:27.4]} 16. b4 {[%clk 0:01:29.9]} 16... cxb4 {[%clk
0:01:19.4]} 17. axb4 {[%clk 0:01:30.8]} 17... Bc8 {[%clk 0:01:00.6]} 18. Qh5
{[%clk 0:01:23.2]} 18... Ng6 {[%clk 0:00:57.6]} 19. g3 {[%clk 0:01:17.7]} 19...
Be6 {[%clk 0:00:56.2]} 20. Ra6 {[%clk 0:00:56.1]} 20... Qb8 {[%clk 0:00:43.7]}
21. Rfa1 {[%clk 0:00:49.4]} 21... Bxc4 {[%clk 0:00:34]} 22. Bxc4 {[%clk
0:00:46.8]} 22... Qxb4 {[%clk 0:00:34.7]} 23. Bb3 {[%clk 0:00:41]} 23... Qd2
{[%clk 0:00:25.1]} 24. Ba3 {[%clk 0:00:36.5]} 24... Rfe8 {[%clk 0:00:17.8]} 25.
Rxg6 {[%clk 0:00:23.4]} 25... hxg6 {[%clk 0:00:16.9]} 26. Qxg6 {[%clk
0:00:23.4]} 26... Rf8 {[%clk 0:00:10.9]} 27. Bxf8 {[%clk 0:00:21.3]} 27... Rxf8
{[%clk 0:00:10.8]} 28. Rxa7 {[%clk 0:00:15.6]} 28... Qc3 {[%clk 0:00:11]} 29.
Qf5 {[%clk 0:00:11.4]} 29... d3 {[%clk 0:00:08.9]} 30. Rxc7 {[%clk 0:00:08.6]}
30... Qxc7 {[%clk 0:00:08]} 31. cxd3 {[%clk 0:00:08.9]} 31... Qc3 {[%clk
0:00:06.7]} 32. Bc4 {[%clk 0:00:08.3]} 32... Qd4 {[%clk 0:00:05.7]} 33. Kg2
{[%clk 0:00:08.1]} 33... Qd6 {[%clk 0:00:05.7]} 34. h4 {[%clk 0:00:07.9]} 34...
Qe7 {[%clk 0:00:01.9]} 35. h5 {[%clk 0:00:07.4]} 35... Rd8 {[%clk 0:00:01.8]}
36. h6 {[%clk 0:00:05.9]} 36... gxh6 {[%clk 0:00:01.6]} 37. Qg6+ {[%clk
0:00:05.9]} 1-0

[Event "*** Titled Tuesday Blitz"]
[Site "Chess.com"]
[Date "2021.02.02"]
[Round "11"]
[White "Sibelephant"]
[Black "Sam_ChessMood"]
[Result "0-1"]
[WhiteElo "3030"]
[BlackElo "2853"]
[TimeControl "180+1"]
[EndTime "12:07:01 PST"]
[Termination "Sam_ChessMood won by resignation"]

1. d4 {[%clk 0:03:00.2]} 1... Nf6 {[%clk 0:02:59.3]} 2. Bg5 {[%clk 0:03:00]}
2... d5 {[%clk 0:02:47.1]} 3. Nd2 {[%clk 0:02:59.1]} 3... c5 {[%clk 0:02:45.3]}
4. e3 {[%clk 0:02:58.8]} 4... Nc6 {[%clk 0:02:43.2]} 5. c3 {[%clk 0:02:57.5]}
5... Qb6 {[%clk 0:02:26.4]} 6. Qc2 {[%clk 0:02:40.9]} 6... e5 {[%clk 0:02:08.8]}
7. dxe5 {[%clk 0:02:37.9]} 7... Nxe5 {[%clk 0:02:08.4]} 8. Ngf3 {[%clk
0:02:28.2]} 8... Nxf3+ {[%clk 0:02:08.1]} 9. gxf3 {[%clk 0:02:28.5]} 9... Be7
{[%clk 0:01:57.2]} 10. Rg1 {[%clk 0:02:24.5]} 10... Be6 {[%clk 0:01:41.1]} 11.
Bd3 {[%clk 0:02:05.8]} 11... g6 {[%clk 0:01:34]} 12. O-O-O {[%clk 0:01:46.2]}
12... O-O-O {[%clk 0:01:26.2]} 13. c4 {[%clk 0:01:34.9]} 13... Rhe8 {[%clk
0:00:52.9]} 14. Kb1 {[%clk 0:01:31.4]} 14... d4 {[%clk 0:00:48.5]} 15. Nb3
{[%clk 0:01:13.2]} 15... dxe3 {[%clk 0:00:39.8]} 16. fxe3 {[%clk 0:01:13.6]}
16... Nh5 {[%clk 0:00:39.7]} 17. Bxe7 {[%clk 0:00:51.2]} 17... Rxe7 {[%clk
0:00:40.6]} 18. Be4 {[%clk 0:00:51.6]} 18... Nf6 {[%clk 0:00:27.6]} 19. Rxd8+
{[%clk 0:00:41]} 19... Kxd8 {[%clk 0:00:28.5]} 20. Bd3 {[%clk 0:00:33.3]} 20...
Kc7 {[%clk 0:00:18.2]} 21. Qf2 {[%clk 0:00:29.2]} 21... Qd6 {[%clk 0:00:13.5]}
22. Be2 {[%clk 0:00:25.7]} 22... b6 {[%clk 0:00:13.1]} 23. Ka1 {[%clk
0:00:21.4]} 23... Qe5 {[%clk 0:00:12.5]} 24. f4 {[%clk 0:00:21.2]} 24... Qf5
{[%clk 0:00:08.1]} 25. Qf3 {[%clk 0:00:14.6]} 25... Qe4 {[%clk 0:00:07.9]} 26.
Qg3 {[%clk 0:00:13.6]} 26... Bf5 {[%clk 0:00:08.1]} 27. Qh4 {[%clk 0:00:06.9]}
27... Qxe3 {[%clk 0:00:07.4]} 28. Rc1 {[%clk 0:00:06.1]} 28... Nd7 {[%clk
0:00:04.8]} 29. Bf1 {[%clk 0:00:05.7]} 29... f6 {[%clk 0:00:04.7]} 30. Rd1
{[%clk 0:00:03.9]} 30... a5 {[%clk 0:00:04.7]} 31. Nc1 {[%clk 0:00:01.9]} 31...
Bc2 {[%clk 0:00:04.5]} 32. Qg4 {[%clk 0:00:02.3]} 32... Bxd1 {[%clk 0:00:04.2]}
33. Qxd1 {[%clk 0:00:03.2]} 33... Qe1 {[%clk 0:00:04.6]} 0-1

[Event "*** Titled Tuesday Blitz"]
[Site "Chess.com"]
[Date "2021.02.02"]
[Round "11"]
[White "Camels1981"]
[Black "Blitzking642"]
[Result "1-0"]
[WhiteElo "2322"]
[BlackElo "2433"]
[TimeControl "180+1"]
[EndTime "12:07:03 PST"]
[Termination "Camels1981 won by resignation"]

1. e4 {[%clk 0:03:00.9]} 1... c5 {[%clk 0:02:59.2]} 2. Nf3 {[%clk 0:02:59.1]}
2... Nc6 {[%clk 0:02:59.6]} 3. d4 {[%clk 0:02:58.7]} 3... cxd4 {[%clk
0:03:00.5]} 4. Nxd4 {[%clk 0:02:59.3]} 4... g6 {[%clk 0:03:01]} 5. Nc3 {[%clk
0:02:58.8]} 5... Bg7 {[%clk 0:03:01]} 6. Be3 {[%clk 0:02:59.3]} 6... Nf6 {[%clk
0:03:00.9]} 7. Nxc6 {[%clk 0:02:59.2]} 7... bxc6 {[%clk 0:03:00.1]} 8. e5 {[%clk
0:02:59.7]} 8... Ng8 {[%clk 0:02:57.7]} 9. Bd4 {[%clk 0:02:59]} 9... f6 {[%clk
0:02:41.1]} 10. f4 {[%clk 0:02:51.4]} 10... fxe5 {[%clk 0:02:37.6]} 11. fxe5
{[%clk 0:02:52.3]} 11... Qa5 {[%clk 0:02:34.7]} 12. Bc4 {[%clk 0:02:43.5]} 12...
Bxe5 {[%clk 0:02:31.4]} 13. O-O {[%clk 0:02:43.9]} 13... Bxd4+ {[%clk 0:02:22]}
14. Qxd4 {[%clk 0:02:43.4]} 14... Qb6 {[%clk 0:02:22.4]} 15. Bf7+ {[%clk
0:02:42.7]} 15... Kd8 {[%clk 0:02:20.7]} 16. Rad1 {[%clk 0:02:40]} 16... Qxd4+
{[%clk 0:02:18.5]} 17. Rxd4 {[%clk 0:02:40.9]} 17... Nf6 {[%clk 0:02:17.9]} 18.
Bb3 {[%clk 0:02:36.7]} 18... d6 {[%clk 0:02:09.1]} 19. Re1 {[%clk 0:02:35]}
19... Bd7 {[%clk 0:02:05.5]} 20. h3 {[%clk 0:02:27.9]} 20... Re8 {[%clk
0:01:39.8]} 21. g4 {[%clk 0:02:03.5]} 21... Rf8 {[%clk 0:01:28.1]} 22. Rd2
{[%clk 0:02:01.7]} 22... Rb8 {[%clk 0:01:25.6]} 23. Nd1 {[%clk 0:01:51.6]} 23...
h5 {[%clk 0:01:17.5]} 24. g5 {[%clk 0:01:48.9]} 24... Nd5 {[%clk 0:01:17.8]} 25.
Bxd5 {[%clk 0:01:47.7]} 25... cxd5 {[%clk 0:01:18.7]} 26. Rxd5 {[%clk
0:01:47.9]} 26... Bxh3 {[%clk 0:01:17.3]} 27. b3 {[%clk 0:01:44.7]} 27... Rf5
{[%clk 0:01:11.1]} 28. Rxf5 {[%clk 0:01:44.5]} 28... Bxf5 {[%clk 0:01:10.5]} 29.
Ne3 {[%clk 0:01:45]} 29... Be6 {[%clk 0:01:08.4]} 30. c4 {[%clk 0:01:42.8]}
30... Kd7 {[%clk 0:01:08.3]} 31. Nc2 {[%clk 0:01:42.4]} 31... Rf8 {[%clk
0:00:57.8]} 32. Nd4 {[%clk 0:01:40.9]} 32... Bf5 {[%clk 0:00:58.3]} 33. Nb5
{[%clk 0:01:38.9]} 33... a6 {[%clk 0:00:56]} 34. Nc3 {[%clk 0:01:39.4]} 34...
Be6 {[%clk 0:00:44.8]} 35. Ne4 {[%clk 0:01:29.6]} 35... Rf5 {[%clk 0:00:44.4]}
36. Rd1 {[%clk 0:01:29.9]} 36... Re5 {[%clk 0:00:40.6]} 37. Rd4 {[%clk
0:01:25.9]} 37... Bf5 {[%clk 0:00:35.9]} 38. Nc3 {[%clk 0:01:25.6]} 38... Be6
{[%clk 0:00:33]} 39. Ne4 {[%clk 0:01:24.4]} 39... Kc6 {[%clk 0:00:31.7]} 40. Kf2
{[%clk 0:01:23.5]} 40... d5 {[%clk 0:00:27.6]} 41. cxd5+ {[%clk 0:01:16.8]}
41... Bxd5 {[%clk 0:00:23.4]} 42. Nc3 {[%clk 0:01:16.6]} 42... Rxg5 {[%clk
0:00:22.3]} 43. Ra4 {[%clk 0:01:17]} 43... Rg2+ {[%clk 0:00:17.2]} 44. Ke3
{[%clk 0:01:16.4]} 44... Rg3+ {[%clk 0:00:17.1]} 45. Kd2 {[%clk 0:01:14.8]}
45... h4 {[%clk 0:00:14.5]} 46. Rxh4 {[%clk 0:01:13.5]} 46... g5 {[%clk
0:00:11.3]} 47. Rh6+ {[%clk 0:01:12.2]} 47... Kc5 {[%clk 0:00:10.9]} 48. Rxa6
{[%clk 0:01:09.3]} 48... Bf3 {[%clk 0:00:11.3]} 49. Re6 {[%clk 0:01:05]} 49...
g4 {[%clk 0:00:11.2]} 50. Rxe7 {[%clk 0:01:05.1]} 50... Rg2+ {[%clk 0:00:10.9]}
51. Ke3 {[%clk 0:01:05]} 51... Rc2 {[%clk 0:00:11.3]} 52. Rc7+ {[%clk
0:01:00.2]} 52... Kb4 {[%clk 0:00:10.6]} 53. Nd5+ {[%clk 0:01:00.1]} 53... Bxd5
{[%clk 0:00:09.4]} 54. Rxc2 {[%clk 0:01:01]} 54... g3 {[%clk 0:00:09.9]} 55. Rd2
{[%clk 0:00:58.6]} 55... g2 {[%clk 0:00:09.8]} 56. Kf2 {[%clk 0:00:58.4]} 56...
Bc6 {[%clk 0:00:09.9]} 57. Kg1 {[%clk 0:00:57.9]} 57... Ka3 {[%clk 0:00:09.8]}
58. Rc2 {[%clk 0:00:50.9]} 58... Be4 {[%clk 0:00:09.8]} 59. Rxg2 {[%clk
0:00:47.2]} 1-0

[Event "*** Titled Tuesday Blitz"]
[Site "Chess.com"]
[Date "2021.02.02"]
[Round "11"]
[White "maximnovik"]
[Black "vovachesss"]
[Result "0-1"]
[WhiteElo "2575"]
[BlackElo "2748"]
[TimeControl "180+1"]
[EndTime "12:07:04 PST"]
[Termination "vovachesss won by checkmate"]

1. Nf3 {[%clk 0:03:00.9]} 1... d6 {[%clk 0:02:57]} 2. g3 {[%clk 0:03:00.9]} 2...
e5 {[%clk 0:02:57.1]} 3. Bg2 {[%clk 0:03:00.1]} 3... Nf6 {[%clk 0:02:57.3]} 4.
O-O {[%clk 0:02:59.7]} 4... c5 {[%clk 0:02:56.9]} 5. Nc3 {[%clk 0:02:48.7]} 5...
Nc6 {[%clk 0:02:57.3]} 6. e4 {[%clk 0:02:48.7]} 6... Be7 {[%clk 0:02:55.4]} 7.
d3 {[%clk 0:02:48.9]} 7... O-O {[%clk 0:02:55.7]} 8. Nd2 {[%clk 0:02:48.2]} 8...
Nd4 {[%clk 0:02:54.4]} 9. h3 {[%clk 0:02:40.9]} 9... Ne8 {[%clk 0:02:07.9]} 10.
Nd5 {[%clk 0:02:37.3]} 10... Nc7 {[%clk 0:01:58.4]} 11. c3 {[%clk 0:02:35.4]}
11... Nde6 {[%clk 0:01:51.4]} 12. a4 {[%clk 0:02:25]} 12... Nxd5 {[%clk
0:01:47.3]} 13. exd5 {[%clk 0:02:24.5]} 13... Nc7 {[%clk 0:01:48.2]} 14. Nc4
{[%clk 0:02:24.2]} 14... b6 {[%clk 0:01:44.7]} 15. f4 {[%clk 0:02:21.5]} 15...
Bb7 {[%clk 0:01:21.7]} 16. fxe5 {[%clk 0:02:19.1]} 16... Bxd5 {[%clk 0:01:22.1]}
17. exd6 {[%clk 0:02:15.7]} 17... Bxd6 {[%clk 0:01:19.8]} 18. Nxd6 {[%clk
0:02:14.7]} 18... Bxg2 {[%clk 0:01:07]} 19. Kxg2 {[%clk 0:01:40.8]} 19... Qxd6
{[%clk 0:01:06.8]} 20. Bf4 {[%clk 0:01:40.6]} 20... Qc6+ {[%clk 0:01:06.9]} 21.
Qf3 {[%clk 0:01:40]} 21... Nd5 {[%clk 0:01:07.8]} 22. Bd2 {[%clk 0:01:32.4]}
22... Rad8 {[%clk 0:01:07.1]} 23. g4 {[%clk 0:01:26]} 23... h6 {[%clk
0:01:04.7]} 24. Rfe1 {[%clk 0:01:19.3]} 24... f5 {[%clk 0:01:00.9]} 25. gxf5
{[%clk 0:01:02.1]} 25... Rxf5 {[%clk 0:01:00]} 26. Qe4 {[%clk 0:00:53.2]} 26...
Rdf8 {[%clk 0:00:40.6]} 27. Kh1 {[%clk 0:00:47.9]} 27... Rf2 {[%clk 0:00:33.7]}
28. Rad1 {[%clk 0:00:45.7]} 28... Kh8 {[%clk 0:00:17.8]} 29. Rg1 {[%clk
0:00:40.5]} 29... Qd7 {[%clk 0:00:12]} 30. Qg4 {[%clk 0:00:35.1]} 30... Qc7
{[%clk 0:00:11.9]} 31. Rg2 {[%clk 0:00:31.6]} 31... R2f3 {[%clk 0:00:07.9]} 32.
Rdg1 {[%clk 0:00:29.4]} 32... R3f7 {[%clk 0:00:06.4]} 33. Qe4 {[%clk 0:00:26.6]}
33... Nf4 {[%clk 0:00:06.1]} 34. Bxf4 {[%clk 0:00:23.4]} 34... Rxf4 {[%clk
0:00:07]} 35. Qe3 {[%clk 0:00:22]} 35... Rf3 {[%clk 0:00:05.5]} 36. Qe6 {[%clk
0:00:21.9]} 36... R8f6 {[%clk 0:00:03.9]} 37. Qe8+ {[%clk 0:00:20.8]} 37... Rf8
{[%clk 0:00:04.4]} 38. Qh5 {[%clk 0:00:20.7]} 38... Qd7 {[%clk 0:00:03.4]} 39.
Rg6 {[%clk 0:00:18.9]} 39... Rxh3+ {[%clk 0:00:03]} 40. Kg2 {[%clk 0:00:12.3]}
40... Rxh5 {[%clk 0:00:03.3]} 41. Kg3 {[%clk 0:00:12.2]} 41... Qf5 {[%clk
0:00:03.4]} 42. Rg4 {[%clk 0:00:11.4]} 42... Qf3# {[%clk 0:00:03.6]} 0-1